bitfinex-derivatives/quotes_SOLF0:USTF0_20250522
["timestamp","ask_amount","ask_price","bid_price","bid_amount"]
[1747885799002,5.6414,177.22,177.17,0.04275485]
[1747885799205,4.009,177.26,177.17,0.04275485]
[1747885801507,5.6411,177.22,177.17,0.04275485]
[1747885802308,6.44916553,177.21,177.17,0.04275485]
[1747885802608,0.80766553,177.21,177.17,0.04275485]
[1747885805208,0.80766553,177.21,177.17,5.68535485]
[1747885805412,0.80766553,177.21,177.17,0.04275485]
[1747885806607,5.6397,177.27,177.21,5.6413]
[1747885806808,5.6397,177.27,177.22,0.0428887]
[1747885807511,5.6392,177.28,177.22,0.0428887]
[1747885807707,2.0833,177.32,177.22,0.0428887]
[1747885808109,5.6382,177.31,177.22,0.0428887]
[1747885808310,3.9574,177.36,177.22,0.0428887]
[1747885808508,7.6604,177.36,177.27,0.03831052]
[1747885808714,10.42478,177.31,177.09,188.90478]
[1747885809014,3.9667,177.3,177.13,10.42580411]
[1747885809203,3.9667,177.3,177.14,178.48]
[1747885809600,2.0238,177.36,177.24,5.6404]
[1747885809801,2.0568,177.35,177.24,178.48]
[1747885810015,0.03676543,177.32,177.28,0.03694968]
[1747885810210,0.87089304,177.41,177.33,5.6374]
[1747885810412,0.87089304,177.41,177.32,178.48]
[1747885810613,6.50589304,177.41,177.32,178.44]
[1747885810810,0.87089304,177.41,177.32,184.0776]
[1747885811012,0.87089304,177.41,177.32,178.44]
[1747885811208,0.87089304,177.41,177.35,0.03705341]
[1747885814514,0.87089304,177.41,177.37,10.41643452]
[1747885814716,1.8916,177.52,177.37,10.41643452]
[1747885814910,1.8916,177.52,177.43,0.04050455]
[1747885816611,5.6322,177.5,177.43,0.04050455]
[1747885816810,1.8916,177.52,177.43,0.04050455]
[1747885817619,5.632,177.51,177.43,5.67480455]
[1747885817819,4.0405,177.55,177.43,0.04050455]
[1747885818017,4.0405,177.55,177.47,0.03855336]
[1747885818419,8.44217898,177.57,177.47,0.03855336]
[1747885818818,8.44217898,177.57,177.48,1.40893492]
[1747885819025,8.44217898,177.57,177.51,0.03668553]
[1747885819423,5.6315,177.52,177.51,0.03668553]
[1747885819921,8.44217898,177.57,177.51,0.03668553]
[1747885820619,5.6315,177.52,177.51,0.03668553]
[1747885821323,5.6312,177.54,177.51,0.03668553]
[1747885821524,8.44217898,177.57,177.51,0.03668553]
[1747885822125,5.6315,177.52,177.51,0.03668553]
[1747885822424,8.44217898,177.57,177.4,1.994]
[1747885822826,10.41643452,177.56,177.33,3.8544]
[1747885823130,10.41643452,177.56,177.34,190.65043452]
[1747885823428,0.04206424,177.47,177.43,0.04275474]
[1747885823727,5.6341,177.44,177.43,0.03964289]
[1747885826026,5.6337,177.46,177.43,0.03964289]
[1747885826223,0.03744811,177.47,177.43,0.03964289]
[1747885828330,5.67064811,177.47,177.43,0.03964289]
[1747885828628,0.03744811,177.47,177.43,0.03964289]
[1747885828829,0.03744811,177.47,177.43,5.67394289]
[1747885829130,0.03744811,177.47,177.43,0.03964289]
[1747885829329,0.03744811,177.47,177.43,5.67374289]
[1747885829522,0.03744811,177.47,177.43,0.03964289]
[1747885829922,0.03744811,177.47,177.43,5.67374289]
[1747885830130,0.03744811,177.47,177.43,0.03964289]
[1747885830329,0.03744811,177.47,177.44,2.0636]
[1747885830927,0.03744811,177.47,177.45,1.40889457]
[1747885832130,0.03744811,177.47,177.45,5.6337]
[1747885832331,0.03744811,177.47,177.44,2.0636]
[1747885832631,0.03744811,177.47,177.44,7.6974]
[1747885832928,0.03744811,177.47,177.43,0.03964289]
[1747885835426,5.6341,177.44,177.43,0.03964289]
[1747885835629,4.0562,177.46,177.34,177.44]
[1747885835833,5.6347,177.42,177.36,5.6366]
[1747885836131,2.0296,177.45,177.36,5.6366]
[1747885836327,22.3,177.53,177.34,177.44]
[1747885836535,0.03614903,177.45,177.42,0.03799807]
[1747885836729,0.04028671,177.45,177.42,0.03871676]
[1747885838535,0.04028671,177.45,177.42,5.67311676]
[1747885839138,0.04028671,177.45,177.43,5.6343]
[1747885839738,0.04028671,177.45,177.44,5.6341]
[1747885840137,4.069,177.52,177.42,10.45515128]
[1747885840329,5.6319,177.51,177.45,5.6338]
[1747885840540,22.3,177.53,177.43,1.40922839]
[1747885840541,32.86921295,177.53,177.44,10.41643452]
[1747885841136,0.03945785,177.5,177.47,0.03710952]
[1747885841332,0.03945785,177.5,177.49,5.6325]
[1747885841838,22.3,177.53,177.5,5.632]
[1747885842036,22.3,177.53,177.47,0.03710952]
[1747885844140,22.3,177.53,177.52,5.6315]
[1747885844335,22.3,177.53,177.52,7.03998657]
[1747885844733,8.44217898,177.57,177.52,1.40848657]
[1747885845130,8.44217898,177.57,177.54,5.6306]
[1747885845335,8.44217898,177.57,177.52,177.42]
[1747885847637,5.6304,177.56,177.52,177.42]
[1747885847834,5.6304,177.56,177.53,1.40836817]
[1747885848047,8.44217898,177.57,177.53,1.40836817]
[1747885848439,10.45507898,177.57,177.53,1.40836817]
[1747885848642,10.45507898,177.57,177.51,0.03599211]
[1747885849345,10.45507898,177.57,177.47,177.38]
[1747885850148,10.45507898,177.57,177.43,5.6344]
[1747885850343,0.03868371,177.52,177.48,0.03658291]
[1747885851945,5.6325,177.49,177.48,0.03658291]
[1747885852146,1.9929,177.51,177.42,177.38]
[1747885852642,2.0607,177.5,177.42,177.38]
[1747885853047,0.03583207,177.48,177.37,177.38]
[1747885853349,0.03957921,177.44,177.41,0.03706123]
[1747885853646,0.03957921,177.44,177.32,183.0176]
[1747885853846,177.38,177.47,177.32,183.0176]
[1747885854043,5.6356,177.4,177.32,183.0176]
[1747885854245,177.38,177.47,177.32,183.0176]
[1747885854550,5.6353,177.4,177.38,0.04313087]
[1747885854747,0.04302131,177.41,177.35,5.6369]
[1747885855249,0.04302131,177.41,177.34,5.6372]
[1747885855447,0.04302131,177.41,177.32,177.38]
[1747885855647,0.04302131,177.41,177.35,0.04204281]
[1747885856649,0.04302131,177.41,177.38,5.636]
[1747885857245,0.04302131,177.41,177.37,5.6361]
[1747885857639,0.04302131,177.41,177.35,0.04204281]
[1747885858457,0.04302131,177.41,177.24,177.04]
[1747885858458,177.04,177.4,177.24,177.04]
[1747885858743,4.1543,177.39,177.24,182.6804]
[1747885858945,4.1543,177.39,177.24,177.04]
[1747885859248,19.50643452,177.38,177.16,177.06]
[1747885859446,0.04192543,177.29,177.25,0.04042732]
[1747885859743,177.06,177.28,177.11,177.06]
[1747885859944,3.9743,177.27,177.11,177.06]
[1747885860148,5.643,177.16,177.06,1.923]
[1747885860352,177.06,177.18,177.02,177.06]
[1747885860654,0.03805958,177.12,177.09,0.03577673]
[1747885861147,5.646,177.07,176.99,2.0085]
[1747885861449,107.1,177.08,176.86,10.41643452]
[1747885861645,107.1,177.08,176.86,16.99084907]
[1747885861646,5.6478,177.01,176.86,16.99084907]
[1747885861955,1.8898,177.15,176.95,16.99084907]
[1747885862156,0.03790994,177.07,177.03,0.04311941]
[1747885862349,0.03798414,177.07,177.03,0.04305871]
[1747885863846,0.03798414,177.07,177.04,1.41211068]
[1747885864953,0.03798414,177.07,177.03,0.04305871]
[1747885866947,24.5,177.13,177.05,16.95423006]
[1747885867256,24.5,177.13,177.06,20.91708366]
[1747885867558,24.5,177.13,177.06,3.9654]
[1747885867756,24.5,177.13,177.02,16.95168366]
[1747885867949,0.03768328,177.09,177.06,0.0421107]
[1747885868355,5.6456,177.08,177.06,0.0421107]
[1747885868553,0.03768328,177.09,176.98,177.24]
[1747885868754,3.9363,177.12,176.98,177.24]
[1747885868755,182.9449,177.1,177.02,5.6474]
[1747885869059,177.3,177.1,177.02,5.6474]
[1747885869249,182.9451,177.1,177.02,5.6474]
[1747885869455,0.04150153,177.08,177.04,0.03842935]
[1747885869653,0.04150153,177.08,177.06,2.39055789]
[1747885869860,24.5,177.13,177.08,16.95168366]
[1747885870054,10.58862838,177.21,177.07,3.8996]
[1747885870353,492.9607,177.24,177.11,16.95168366]
[1747885870758,0.0427163,177.17,177.16,5.6429]
[1747885871154,0.0427163,177.17,177.14,0.0380018]
[1747885874267,0.0427163,177.17,177.01,16.95168366]
[1747885874460,177.32,177.18,177.01,16.95168366]
[1747885874656,177.32,177.18,177.0,665.0]
[1747885874864,5.6436,177.14,177.0,665.0]
[1747885875059,177.32,177.18,177.0,665.0]
[1747885875264,0.03736276,177.11,177.07,0.04350866]
[1747885875464,0.03832655,177.11,177.07,0.03893412]
[1747885875664,0.03832655,177.11,177.1,5.6447]
[1747885876763,0.03832655,177.11,177.07,0.03893412]
[1747885877472,0.03832655,177.11,177.08,1.41179825]
[1747885877669,0.03832655,177.11,177.07,0.03893412]
[1747885877870,0.03832655,177.11,176.82,16.95168366]
[1747885878076,177.34,177.12,176.94,18.92748366]
[1747885878268,665.12,177.12,176.94,18.92748366]
[1747885878469,665.12,177.12,176.93,177.34]
[1747885878874,0.03740595,177.04,177.01,0.03678]
[1747885879075,0.03740595,177.04,177.01,0.0435189]
[1747885879076,0.03807727,177.04,177.01,0.0435189]
[1747885879870,4.0534,177.14,177.01,0.0435189]
[1747885880170,4.0534,177.14,177.0,16.95168366]
[1747885880371,4.0534,177.14,177.03,16.95168366]
[1747885880871,0.03566254,177.1,177.07,0.04071524]
[1747885881070,177.38,177.18,177.07,16.9923989]
[1747885881271,177.38,177.18,177.07,16.95168366]
[1747885881477,17.8618,177.2,177.13,5.6438]
[1747885881673,189.6,177.2,177.07,16.95168366]
[1747885881971,189.6,177.2,177.14,5.6435]
[1747885882167,0.03715307,177.19,177.15,0.04267449]
[1747885882368,0.03698313,177.19,177.15,0.04267449]
[1747885882578,5.67908313,177.19,177.15,0.04267449]
[1747885883368,0.03698313,177.19,177.15,0.04267449]
[1747885883970,5.67908313,177.19,177.15,0.04267449]
[1747885884169,0.03698313,177.19,177.15,0.04267449]
[1747885884665,0.03698313,177.19,177.18,5.6423]
[1747885885070,21.83,177.22,177.15,16.99435815]
[1747885885270,21.83,177.22,177.21,5.6414]
[1747885885474,21.83,177.22,177.17,177.38]
[1747885885678,21.83,177.22,177.17,183.0224]
[1747885885877,21.83,177.22,177.17,177.38]
[1747885886080,0.03681885,177.21,177.18,0.04068627]
[1747885886374,0.03681885,177.21,177.11,177.26]
[1747885886574,21.83,177.22,177.11,16.93989869]
[1747885887573,0.03952865,177.18,177.17,5.6425]
[1747885887769,0.03952865,177.18,177.15,0.03971521]
[1747885889983,0.03952865,177.18,177.17,5.6426]
[1747885891078,12.8443,177.22,177.21,5.6414]
[1747885891281,2.093,177.32,177.21,16.93989869]
[1747885891578,2.093,177.32,177.27,5.6394]
[1747885891780,177.24,177.37,177.26,16.93989869]
[1747885892078,0.04180262,177.33,177.31,5.6381]
[1747885892273,0.04180262,177.33,177.3,0.04288141]
[1747885892674,0.04180262,177.33,177.32,5.6379]
[1747885893083,0.04180262,177.33,177.3,0.04288141]
[1747885895376,0.04180262,177.33,177.31,5.6382]
[1747885895580,0.04180262,177.33,177.3,0.04288141]
[1747885896178,0.04180262,177.33,177.3,5.68108141]
[1747885896682,0.04180262,177.33,177.3,0.04288141]
[1747885898475,5.6379,177.32,177.3,0.04288141]
[1747885899183,5.6382,177.31,177.3,0.04288141]
[1747885899387,0.04180262,177.33,177.24,664.86]
[1747885899579,177.14,177.34,177.24,177.14]
[1747885899781,5.6392,177.28,177.24,177.14]
[1747885900279,0.0384505,177.28,177.25,1.41040646]
[1747885901182,0.0384505,177.28,177.24,177.17995536]
[1747885901583,0.0384505,177.28,177.24,0.03995536]
[1747885903283,5.6401,177.25,177.24,0.03995536]
[1747885903588,5.6405,177.24,177.18,5.6423]
[1747885903789,107.2,177.26,177.07,177.14]
[1747885904089,16.93989869,177.24,177.02,177.14]
[1747885904490,0.0379475,177.15,177.11,0.04143125]
[1747885904686,5.6462,177.06,176.97,177.14]
[1747885904883,177.14,177.09,176.97,177.14]
[1747885905085,1.9256,177.08,176.97,177.14]
[1747885905279,5.6465,177.05,176.97,177.14]
[1747885905480,1.9256,177.08,177.05,3.25877327]
[1747885905683,1.9256,177.08,176.92,6.53789501]
[1747885906392,1.9256,177.08,176.94,5.6499]
[1747885906591,1.9256,177.08,176.92,23.4777937]
[1747885906791,0.03581951,177.02,176.98,0.039215]
[1747885907591,0.03581951,177.02,176.98,5.687615]
[1747885907891,0.03581951,177.02,176.98,0.039215]
[1747885908592,0.03581951,177.02,176.99,3.23859609]
[1747885909297,0.03581951,177.02,177.0,5.6478]
[1747885909488,0.03581951,177.02,176.99,3.23859609]
[1747885909892,0.03581951,177.02,176.98,0.039215]
[1747885910392,0.03581951,177.02,176.99,1.41240045]
[1747885910994,0.03581951,177.02,176.98,0.039215]
[1747885911493,5.68341951,177.02,176.98,0.039215]
[1747885911692,0.03581951,177.02,176.98,0.039215]
[1747885913090,0.03581951,177.02,176.98,5.687615]
[1747885913289,0.03581951,177.02,176.98,0.039215]
[1747885913489,0.03581951,177.02,176.98,16.97911369]
[1747885913696,0.03581951,177.02,177.01,5.6477]
[1747885914396,1.951e-05,177.02,177.01,5.6477]
[1747885914698,177.32,177.11,176.98,16.97911369]
[1747885914895,5.6452,177.09,176.99,1.41252222]
[1747885915099,5.6452,177.09,177.03,5.647]
[1747885915289,2.0151,177.13,176.97,16.93989869]
[1747885915491,0.03767691,177.07,177.03,0.03668513]
[1747885916695,0.03767691,177.07,177.04,5.6465]
[1747885916895,0.03767691,177.07,177.03,0.03668513]
[1747885917293,0.03767691,177.07,177.05,5.6463]
[1747885917593,0.03767691,177.07,177.03,0.03668513]
[1747885918288,2.0151,177.13,177.03,0.03668513]
[1747885918490,2.0151,177.13,177.05,16.93989869]
[1747885919298,2.0151,177.13,177.07,0.0375402]
[1747885919499,0.04241059,177.12,177.07,0.0375402]
[1747885919798,0.04241059,177.12,177.11,5.6446]
[1747885920202,1.059e-05,177.12,177.11,5.6446]
[1747885920700,9.13,177.16,177.09,20.26769869]
[1747885920995,9.13,177.16,177.12,5.644]
[1747885921200,9.13,177.16,177.09,18.85249869]
[1747885921402,9.13,177.16,177.08,178.9]
[1747885921601,0.03942695,177.14,177.11,0.03848014]
[1747885922097,0.03942695,177.14,177.13,5.6439]
[1747885922298,9.13,177.16,177.13,16.93989869]
[1747885922503,3.8989,177.3,177.14,303.09989869]
[1747885922695,3.8989,177.3,177.14,286.16]
[1747885922891,3.8989,177.3,177.14,178.86]
[1747885923100,3.8989,177.3,177.1,487.9]
[1747885923300,0.03856918,177.22,177.18,0.03751926]
[1747885923501,178.89790551,177.22,177.18,0.03737572]
[1747885923693,1.9557,177.21,177.1,487.9]
[1747885923899,3.9717,177.21,177.1,487.9]
[1747885924613,0.04196152,177.17,177.14,0.03723338]
[1747885924906,0.03641992,177.17,177.15,5.643]
[1747885925505,0.03641992,177.17,177.16,5.643]
[1747885925805,0.03641992,177.17,177.14,0.03603411]
[1747885926201,0.03641992,177.17,177.16,5.643]
[1747885926400,487.9,177.27,177.14,16.9759328]
[1747885926603,493.5395,177.27,177.21,5.6413]
[1747885926802,178.86,177.28,177.15,286.14]
[1747885927209,5.6402,177.25,177.15,286.14]
[1747885927506,0.03640436,177.22,177.18,0.04118403]
[1747885927807,0.03640436,177.22,177.2,5.6414]
[1747885928008,0.03640436,177.22,177.18,0.04118403]
[1747885928409,0.03640436,177.22,177.21,5.6414]
[1747885928609,0.03640436,177.22,177.18,0.04118403]
[1747885929010,0.03640436,177.22,177.21,5.6414]
[1747885929206,4.36e-06,177.22,177.21,5.6414]
[1747885929406,6.03,177.25,177.24,5.6404]
[1747885929903,4.0215,177.32,177.28,5.639]
[1747885930209,5.6377,177.33,177.21,195.75989869]
[1747885930404,0.03916778,177.29,177.25,0.04209159]
[1747885930602,0.03916778,177.29,177.28,5.6392]
[1747885931614,6.778e-05,177.29,177.28,5.6392]
[1747885932107,6.778e-05,177.29,177.28,7.04909574]
[1747885932310,4.99,177.38,177.28,1.40989574]
[1747885932710,5.6363,177.37,177.31,5.6382]
[1747885932910,4.99,177.38,177.28,1.40989574]
[1747885933309,5.6379,177.33,177.31,0.03578777]
[1747885933504,0.03918665,177.35,177.31,0.03578777]
[1747885933814,5.6385,177.31,177.24,5.6402]
[1747885934009,178.74,177.35,177.22,773.66]
[1747885934420,178.74,177.35,177.22,666.4]
[1747885934611,0.04235875,177.3,177.27,0.04258731]
[1747885934807,5.6388,177.29,177.27,0.04258731]
[1747885935013,0.04235875,177.3,177.27,0.04258731]
[1747885935716,0.04235875,177.3,177.22,178.74]
[1747885935919,5.6399,177.26,177.22,178.74]
[1747885936311,178.74,177.35,177.22,178.74]
[1747885936814,0.03838274,177.3,177.27,0.04175327]
[1747885937017,5.6392,177.28,177.27,0.04175327]
[1747885939318,1.9316,177.29,177.27,0.04175327]
[1747885940317,0.03838274,177.3,177.27,5.68125327]
[1747885940513,0.03838274,177.3,177.27,0.04175327]
[1747885941016,2.0628,177.37,177.28,178.72]
[1747885942118,0.04013402,177.34,177.31,0.04351531]
[1747885942508,0.04013402,177.34,177.32,5.6375]
[1747885942914,0.04013402,177.34,177.32,5.6378]
[1747885943120,0.04013402,177.34,177.31,0.04351531]
[1747885943313,4.99,177.38,177.31,0.04351531]
[1747885943917,4.99,177.38,177.36,5.6365]
[1747885944117,4.99,177.38,177.3,107.18]
[1747885944321,0.04034614,177.36,177.32,0.04213051]
[1747885944519,0.04034614,177.36,177.33,5.6374]
[1747885944717,0.04034614,177.36,177.32,0.04213051]
[1747885945418,5.6369,177.35,177.32,0.04213051]
[1747885945618,0.04034614,177.36,177.32,0.04213051]
[1747885946529,0.04034614,177.36,177.33,0.968452]
[1747885947321,0.04034614,177.36,177.32,0.04213051]
[1747885947926,5.6375,177.33,177.32,0.04213051]
[1747885948130,0.04034614,177.36,177.32,0.04213051]
[1747885949726,5.6375,177.33,177.32,0.04213051]
[1747885950024,0.04034614,177.36,177.23,177.04]
[1747885950224,2.0388,177.32,177.23,177.04]
[1747885950929,0.03858037,177.29,177.26,5.67690488]
[1747885951128,0.03858037,177.29,177.26,0.03740488]
[1747885951518,0.03858037,177.29,177.28,5.6391]
[1747885951827,0.03858037,177.29,177.27,1.4101145]
[1747885952529,0.03858037,177.29,177.26,0.03740488]
[1747885953727,0.03858037,177.29,177.27,5.6394]
[1747885953928,0.03858037,177.29,177.26,0.03740488]
[1747885954731,0.03858037,177.29,177.26,5.67700488]
[1747885954931,0.03858037,177.29,177.26,0.03740488]
[1747885955334,0.03858037,177.29,177.28,5.6391]
[1747885956735,10.6259,177.38,177.33,5.6374]
[1747885956932,4.99,177.38,177.29,177.04]
[1747885957532,4.99,177.38,177.32,5.6377]
[1747885957734,0.04089634,177.37,177.33,0.04177349]
[1747885957929,5.6367,177.36,177.33,0.04177349]
[1747885958134,0.04089634,177.37,177.33,0.04177349]
[1747885958535,0.04089634,177.37,177.34,1.40961211]
[1747885958934,0.04089634,177.37,177.34,7.04671211]
[1747885959136,0.04089634,177.37,177.34,178.42961211]
[1747885959437,0.04089634,177.37,177.34,177.02]
[1747885961736,0.04089634,177.37,177.36,5.6365]
[1747885961937,0.04089634,177.37,177.34,177.02]
[1747885962339,4.0537,177.45,177.35,18.28040666]
[1747885962640,2.0229,177.45,177.35,18.28040666]
[1747885962842,2.0229,177.45,177.38,5.6359]
[1747885963042,2.0229,177.45,177.35,18.28040666]
[1747885963242,0.04101865,177.42,177.4,5.6349]
[1747885963436,0.04041633,177.43,177.39,0.04299724]
[1747885963836,0.04041633,177.43,177.41,5.6349]
[1747885964134,0.04041633,177.43,177.39,0.04299724]
[1747885964442,0.04041633,177.43,177.4,176.98]
[1747885967443,5.6349,177.41,177.39,0.04299724]
[1747885967637,0.04041633,177.43,177.34,176.96]
[1747885967834,2.0807,177.42,177.34,176.96]
[1747885968035,5.6361,177.38,177.29,284.08]
[1747885968233,2.0807,177.42,177.29,284.08]
[1747885968636,0.03864794,177.37,177.34,0.03601279]
[1747885969035,5.6366,177.36,177.34,0.03601279]
[1747885969235,0.03864794,177.37,177.34,0.03601279]
[1747885969842,5.67494794,177.37,177.34,0.03601279]
[1747885970146,0.03864794,177.37,177.34,0.03601279]
[1747885970847,0.03864794,177.37,177.34,5.67311279]
[1747885971148,0.03864794,177.37,177.34,0.03601279]
[1747885972445,0.03864794,177.37,177.35,176.96]
[1747885972647,5.05,177.44,177.35,176.96]
[1747885973747,0.03647008,177.41,177.38,0.04091874]
[1747885975253,0.03647008,177.41,177.4,5.6352]
[1747885975443,0.03647008,177.41,177.38,0.04091874]
[1747885976753,5.67647008,177.41,177.27,2.0838]
[1747885976941,5.6367,177.36,177.29,5.6386]
[1747885977146,176.76,177.42,177.25,123.69868166]
[1747885977545,5.6374,177.34,177.27,5.6391]
[1747885977746,0.03705648,177.32,177.29,0.04240395]
[1747885977950,0.03740466,177.32,177.29,0.03886274]
[1747885978452,0.03740466,177.32,177.2,1.8956]
[1747885978652,3.9056,177.33,177.2,1.8956]
[1747885978859,3.9056,177.33,177.28,2.59430139]
[1747885979050,5.64,177.26,177.23,3.24684496]
[1747885979357,3.9056,177.33,177.23,3.24684496]
[1747885979554,5.6401,177.25,177.23,3.28915142]
[1747885979744,3.9056,177.33,177.23,0.04230646]
[1747885980150,0.04212901,177.3,177.23,0.04230646]
[1747885981042,107.16212901,177.3,177.12,177.1019]
[1747885981247,107.12,177.3,177.12,177.1019]
[1747885981656,5.6422,177.19,177.12,182.424]
[1747885981855,176.82,177.25,177.12,176.78]
[1747885982159,5.6436,177.14,177.06,7.6634]
[1747885982552,2.0757,177.24,177.05,487.14]
[1747885983059,18.28040666,177.22,177.13,0.04151579]
[1747885983360,0.03803558,177.19,177.1,0.0793342]
[1747885983656,176.82,177.18,177.1,0.0793342]
[1747885983861,176.85803558,177.19,177.1,0.0793342]
[1747885984053,5.09,177.17,177.11,1.41182406]
[1747885984463,5.09,177.17,177.05,38.79281048]
[1747885984655,5.09,177.17,177.02,64.65468414]
[1747885985165,5.09,177.17,177.0,107.16]
[1747885985452,0.04154588,177.1,177.07,0.03863785]
[1747885985653,176.88,177.12,176.99,176.82]
[1747885985855,284.08,177.12,176.98,5.6485]
[1747885986048,5.6457,177.07,176.98,5.6486]
[1747885986657,0.0367082,177.04,177.01,0.03566152]
[1747885986867,5.09,177.17,177.01,0.04116149]
[1747885987158,5.09,177.17,177.07,5.6454]
[1747885987351,5.09,177.17,177.03,18.28040666]
[1747885987654,5.6439,177.13,177.04,5.6465]
[1747885987851,0.03962566,177.1,177.07,0.04286744]
[1747885988048,0.03654451,177.1,177.07,0.04286744]
[1747885988258,5.09,177.17,177.07,0.04286744]
[1747885988960,5.09,177.17,177.08,195.22040666]
[1747885989355,0.04229753,177.14,177.11,0.03964207]
[1747885990660,0.04229753,177.14,177.11,1.34082255]
[1747885991659,0.04229753,177.14,177.11,0.03964207]
[1747885992262,5.6451,177.09,177.01,5.6473]
[1747885992761,5.6455,177.08,177.0,5.6479]
[1747885992964,1.9527,177.13,176.98,176.94]
[1747885993158,0.04054925,177.07,177.04,0.03752749]
[1747885993851,0.04054925,177.07,177.06,5.646]
[1747885994051,0.04054925,177.07,177.04,0.03752749]
[1747885994454,0.04054925,177.07,177.06,5.646]
[1747885994651,0.04054925,177.07,177.04,0.03752749]
[1747885994852,0.04054925,177.07,177.05,5.6462]
[1747885995055,0.04054925,177.07,177.04,0.03752749]
[1747885997867,0.04054925,177.07,177.06,5.646]
[1747885998360,0.04054925,177.07,177.04,0.03752749]
[1747886002872,0.04054925,177.07,177.05,1.41219164]
[1747886002873,5.17054925,177.07,177.05,1.41219164]
[1747886003067,5.646,177.06,177.05,1.41219164]
[1747886003368,5.17054925,177.07,177.04,0.03752749]
[1747886003666,5.6463,177.05,177.04,0.03752749]
[1747886003864,3.8945,177.06,176.98,176.94]
[1747886004066,3.8945,177.06,176.92,177.04]
[1747886004265,3.8945,177.06,176.99,1.41253074]
[1747886004872,5.6472,177.03,177.01,0.03601627]
[1747886005172,0.0422793,177.04,177.0,0.0430196]
[1747886005375,0.04116611,177.04,177.0,0.04141674]
[1747886007369,0.04116611,177.04,177.0,1.45405938]
[1747886007973,0.04116611,177.04,177.0,0.04141674]
[1747886009479,176.58116611,177.04,177.0,0.04141674]
[1747886009673,5.6476,177.01,177.0,0.04141674]
[1747886010472,2.0706,177.03,177.0,0.04141674]
[1747886010669,2.0706,177.03,176.85,487.9]
[1747886010872,606.74988171,177.02,176.74,664.56]
[1747886011079,11.40988171,176.98,176.76,4.0161]
[1747886011270,11.40988171,176.93,176.72,2.0651]
[1747886011574,11.40988171,176.91,176.7,123.86247327]
[1747886011779,0.03841441,176.82,176.79,0.0370774]
[1747886011981,0.04180123,176.82,176.79,0.03656687]
[1747886014575,4.068,176.92,176.79,5.69656687]
[1747886014782,4.068,176.92,176.8,176.64]
[1747886014983,5.6509,176.91,176.8,182.2943]
[1747886015173,4.068,176.92,176.8,176.64]
[1747886015374,4.068,176.92,176.75,180.6041]
[1747886015570,0.03649162,176.85,176.82,0.03937401]
[1747886015876,0.03978777,176.85,176.82,0.03937401]
[1747886023982,0.03978777,176.85,176.82,5.69277401]
[1747886024285,0.03978777,176.85,176.82,0.03937401]
[1747886025083,0.03978777,176.85,176.84,5.653]
[1747886025682,488.14,177.0,176.82,0.03937401]
[1747886025878,176.72,176.99,176.79,18.39399523]
[1747886026182,5.6502,176.93,176.79,18.39399523]
[1747886026379,2.0878,176.98,176.79,18.39399523]
[1747886026581,2.0878,176.98,176.8,107.44]
[1747886026782,3.9798,177.04,176.91,5.6505]
[1747886026979,2.0878,177.03,176.91,5.6505]
[1747886027283,5.6481,177.0,176.88,176.72]
[1747886027486,2.0878,177.03,176.91,5.6507]
[1747886027779,0.04240048,176.99,176.95,0.03590311]
[1747886029279,5.6492,176.96,176.95,0.03590311]
[1747886029576,176.76240048,176.99,176.85,3.9897]
[1747886029888,176.72,176.99,176.85,3.9897]
[1747886030088,176.72,176.99,176.83,176.72]
[1747886030483,0.03705311,176.93,176.89,0.04104809]
[1747886031385,5.17,176.92,176.89,0.04104809]
[1747886031988,5.6511,176.91,176.89,0.04104809]
[1747886032486,5.17,176.92,176.89,0.04104809]
[1747886032688,2928.18,177.19,176.89,0.04104809]
[1747886032689,11.42946351,177.12,176.89,0.04104809]
[1747886032888,665.22,177.11,176.9,176.7]
[1747886033088,1.9561,177.1,176.91,3.9734]
[1747886033493,1.9561,177.1,176.92,5.6504]
[1747886033792,0.03728403,177.0,176.96,0.0366989]
[1747886034693,0.03728403,177.0,176.96,5.6857989]
[1747886034991,0.03728403,177.0,176.96,0.0366989]
[1747886035798,0.03728403,177.0,176.99,5.6482]